[Event "6. Internationales Spandauer Weihnachtsopen 2023"]
[Site "Spandau, Germany"]
[Date "2023.12.28"]
[Round "3.1"]
[White "Jankowiak, Piotr"]
[Black "Dahl, Christoph"]
[Result "0-1"]
[TimeControl "90 min+30 sec"]
[WhiteElo "2076"]
[BlackElo "2357"]

1. e4 {[%clk 01:30:56]} {[%emt 00:00:05]} e5 {[%clk 01:30:51]} {[%emt
00:00:08]} 2. Nf3 {[%clk 01:30:00]} {[%emt 00:01:32]} Nc6 {[%clk 01:30:38]}
{[%emt 00:00:39]} 3. Bc4 {[%clk 01:30:14]} {[%emt 00:00:15]} Nf6 {[%clk
01:30:15]} {[%emt 00:00:53]} 4. d3 {[%clk 01:28:33]} {[%emt 00:02:16]} Be7
{[%clk 01:29:22]} {[%emt 00:01:23]} 5. c3 {[%clk 01:27:32]} {[%emt 00:01:31]}
O-O {[%clk 01:29:11]} {[%emt 00:00:37]} 6. O-O {[%clk 01:26:23]} {[%emt
00:01:42]} d6 {[%clk 01:26:27]} {[%emt 00:03:09]} 7. h3 {[%clk 01:26:08]}
{[%emt 00:00:49]} h6 {[%clk 01:25:36]} {[%emt 00:01:16]} 8. Re1 {[%clk
01:25:16]} {[%emt 00:01:23]} Nh7 {[%clk 01:23:35]} {[%emt 00:02:36]} 9. d4
{[%clk 01:19:50]} {[%emt 00:05:55]} Ng5 {[%clk 01:19:11]} {[%emt 00:04:50]} 10.
Nbd2 {[%clk 01:16:01]} {[%emt 00:04:22]} Bf6 {[%clk 01:07:51]} {[%emt
00:11:46]} 11. dxe5 {[%clk 01:01:17]} {[%emt 00:15:19]} Nxe5 {[%clk 01:04:13]}
{[%emt 00:07:29]} 12. Nxe5 {[%clk 01:01:10]} dxe5 {[%clk 01:01:05]} {[%emt
00:00:53]} 13. Qe2 {[%clk 00:58:09]} {[%emt 00:03:35]} Qe7 {[%clk 00:52:35]}
{[%emt 00:08:52]} 14. Nf3 {[%clk 00:57:22]} {[%emt 00:01:21]} Nxf3+ {[%clk
00:46:46]} {[%emt 00:06:31]} 15. Qxf3 {[%clk 00:57:41]} Be6 {[%clk 00:46:22]}
{[%emt 00:00:48]} 16. Qe2 {[%clk 00:53:30]} {[%emt 00:04:41]} Rfd8 {[%clk
00:39:36]} {[%emt 00:07:16]} 17. Be3 {[%clk 00:50:40]} {[%emt 00:03:33]} Qd7
{[%clk 00:32:36]} {[%emt 00:07:16]} 18. Bb5 {[%clk 00:37:15]} {[%emt 00:13:55]}
c6 {[%clk 00:29:45]} {[%emt 00:03:21]} 19. Red1 {[%clk 00:33:07]} {[%emt
00:04:39]} Qe7 {[%clk 00:23:47]} {[%emt 00:06:28]} 20. Bc4 {[%clk 00:33:16]}
{[%emt 00:00:20]} b5 {[%clk 00:16:22]} {[%emt 00:07:56]} 21. Bxe6 {[%clk
00:32:30]} {[%emt 00:01:16]} Qxe6 {[%clk 00:16:44]} {[%emt 00:00:08]} 22. b3
{[%clk 00:31:52]} {[%emt 00:01:11]} a5 {[%clk 00:14:06]} {[%emt 00:03:06]} 23.
Rxd8+ {[%clk 00:29:49]} {[%emt 00:02:35]} Bxd8 {[%clk 00:09:57]} {[%emt
00:04:38]} 24. Bc5 {[%clk 00:22:31]} {[%emt 00:07:46]} a4 {[%clk 00:08:50]}
{[%emt 00:01:37]} 25. b4 {[%clk 00:21:54]} {[%emt 00:01:08]} Be7 {[%clk
00:06:00]} {[%emt 00:03:28]} 26. Bxe7 {[%clk 00:21:35]} {[%emt 00:00:48]} Qxe7
{[%clk 00:06:29]} 27. Rd1 {[%clk 00:21:34]} {[%emt 00:00:27]} Qe6 {[%clk
00:06:24]} {[%emt 00:00:35]} 28. c4 {[%clk 00:12:23]} {[%emt 00:09:37]} bxc4
{[%emt 00:00:08]} 29. Rc1 {[%clk 00:12:50]} {[%emt 00:00:05]} Rd8 {[%clk
00:07:00]} {[%emt 00:00:17]} 30. Qxc4 {[%clk 00:07:31]} {[%emt 00:05:46]} Rd1+
{[%clk 00:07:24]} {[%emt 00:00:06]} 31. Kh2 {[%clk 00:08:00]} Rxc1 {[%clk
00:05:47]} {[%emt 00:02:10]} 32. Qxc1 {[%clk 00:08:27]} {[%emt 00:00:05]} Qxa2
{[%clk 00:04:52]} {[%emt 00:01:21]} 33. Qxc6 {[%clk 00:06:51]} {[%emt
00:02:09]} a3 {[%clk 00:02:35]} {[%emt 00:02:44]} 34. b5 {[%clk 00:06:27]}
{[%emt 00:00:57]} Kh7 {[%clk 00:01:56]} {[%emt 00:01:07]} 35. Qa6 {[%clk
00:00:47]} {[%emt 00:06:13]} Qxf2 {[%clk 00:01:02]} {[%emt 00:01:20]} 36. Qxa3
{[%clk 00:00:55]} {[%emt 00:00:22]} Qf4+ {[%clk 00:01:20]} {[%emt 00:00:11]} 37.
Qg3 {[%clk 00:00:52]} {[%emt 00:00:35]} Qxe4 {[%clk 00:01:48]} 38. Qf3 {[%clk
00:01:21]} {[%emt 00:00:05]} Qg6 {[%clk 00:01:15]} {[%emt 00:01:03]} 39. Qc6
{[%clk 00:01:22]} {[%emt 00:00:25]} Qf5 {[%clk 00:01:21]} {[%emt 00:00:23]} 40.
Qf3 {[%clk 00:01:19]} {[%emt 00:00:43]} Qb1 {[%clk 00:01:02]} {[%emt 00:00:40]}
41. Qc6 {[%clk 00:00:34]} {[%emt 00:01:15]} e4 {[%clk 00:01:16]} {[%emt
00:00:17]} 42. Qc5 {[%clk 00:00:36]} {[%emt 00:00:34]} e3 {[%clk 00:01:26]}
{[%emt 00:00:13]} 43. Qxe3 {[%clk 00:00:38]} {[%emt 00:00:27]} Qxb5 {[%clk
00:01:52]} {[%emt 00:00:06]} 44. Qe4+ {[%clk 00:00:41]} {[%emt 00:00:26]} f5
{[%clk 00:02:16]} {[%emt 00:00:09]} 45. Qf4 {[%clk 00:00:53]} {[%emt 00:00:21]}
Qc5 {[%clk 00:02:19]} {[%emt 00:00:21]} 46. Kh1 {[%clk 00:00:48]} {[%emt
00:00:37]} g5 {[%clk 00:01:50]} {[%emt 00:00:57]} 47. Qb8 {[%clk 00:00:33]}
{[%emt 00:00:54]} Qe7 {[%clk 00:01:10]} {[%emt 00:01:00]} 48. Qc8 {[%clk
00:00:55]} {[%emt 00:00:09]} Qe1+ {[%clk 00:01:03]} {[%emt 00:00:51]} 49. Kh2
{[%clk 00:01:23]} Qe5+ {[%clk 00:01:28]} 50. Kh1 {[%clk 00:01:44]} {[%emt
00:00:12]} h5 {[%clk 00:01:23]} {[%emt 00:00:26]} 51. Qd7+ {[%clk 00:01:55]}
{[%emt 00:00:22]} Kg6 {[%clk 00:01:48]} {[%emt 00:00:09]} 52. Qd8 {[%clk
00:01:49]} {[%emt 00:00:29]} Qe6 {[%clk 00:01:55]} {[%emt 00:00:22]} 53. Kh2
{[%clk 00:00:52]} {[%emt 00:01:28]} f4 {[%clk 00:01:38]} {[%emt 00:00:46]} 54.
Qd3+ {[%clk 00:00:52]} {[%emt 00:00:44]} Kh6 {[%clk 00:01:45]} {[%emt
00:00:08]} 55. Qd4 {[%clk 00:00:49]} {[%emt 00:00:35]} Kg6 {[%clk 00:01:33]}
{[%emt 00:00:41]} 56. Qd3+ {[%clk 00:00:54]} {[%emt 00:00:24]} Qf5 {[%clk
00:01:20]} {[%emt 00:00:44]} 57. Qd6+ {[%clk 00:01:22]} Qf6 {[%clk 00:01:43]}
{[%emt 00:00:11]} 58. Qd3+ {[%clk 00:01:33]} {[%emt 00:00:16]} Kh6 {[%clk
00:02:08]} {[%emt 00:00:06]} 59. Qd7 {[%clk 00:01:41]} {[%emt 00:00:25]} f3
{[%clk 00:01:53]} {[%emt 00:00:41]} 60. gxf3 {[%clk 00:01:39]} {[%emt
00:00:36]} Qxf3 {[%clk 00:02:15]} {[%emt 00:00:06]} 61. Qe6+ {[%clk 00:01:50]}
{[%emt 00:00:17]} Kg7 {[%clk 00:02:39]} {[%emt 00:00:06]} 62. Qe7+ {[%clk
00:02:00]} {[%emt 00:00:21]} Kg6 {[%clk 00:03:04]} {[%emt 00:00:07]} 63. Qe6+
{[%clk 00:01:47]} {[%emt 00:00:40]} Qf6 {[%clk 00:03:26]} {[%emt 00:00:09]} 64.
Qg8+ {[%clk 00:01:44]} {[%emt 00:00:36]} Kf5 {[%clk 00:01:51]} {[%emt
00:02:03]} 65. Qh7+ {[%clk 00:01:36]} {[%emt 00:00:36]} Qg6 {[%clk 00:01:22]}
{[%emt 00:00:59]} 66. Qd7+ {[%clk 00:01:48]} {[%emt 00:00:18]} Kf6 {[%clk
00:01:06]} {[%emt 00:00:47]} 67. Qd8+ {[%clk 00:01:48]} {[%emt 00:00:35]} Ke5
{[%clk 00:00:40]} {[%emt 00:00:51]} 68. Qe7+ {[%clk 00:02:00]} {[%emt
00:00:18]} Kd5 {[%clk 00:01:00]} {[%emt 00:00:10]} 69. Qb7+ {[%clk 00:02:10]}
{[%emt 00:00:20]} Kc5 {[%clk 00:01:18]} {[%emt 00:00:15]} 70. Qa7+ {[%clk
00:01:32]} {[%emt 00:01:05]} Qb6 {[%clk 00:01:30]} {[%emt 00:00:18]} 71. Qa3+
{[%clk 00:01:44]} {[%emt 00:00:18]} Kd4 {[%clk 00:01:10]} {[%emt 00:00:49]} 72.
Qa4+ {[%clk 00:01:45]} {[%emt 00:00:29]} Kc3 {[%clk 00:01:15]} {[%emt
00:00:25]} 73. Qa3+ {[%clk 00:01:41]} {[%emt 00:00:38]} Kc2 {[%clk 00:01:34]}
{[%emt 00:00:08]} 74. Qa4+ {[%clk 00:02:00]} {[%emt 00:00:11]} Kb2 {[%clk
00:01:52]} {[%emt 00:00:13]} 75. Qd7 {[%clk 00:01:19]} {[%emt 00:01:10]} Qc5
{[%clk 00:00:48]} {[%emt 00:01:36]} 76. Qg7+ {[%clk 00:01:02]} {[%emt
00:00:45]} Kc1 {[%clk 00:01:09]} {[%emt 00:00:08]} 77. Qf7 {[%clk 00:00:35]}
{[%emt 00:00:58]} h4 {[%clk 00:00:53]} {[%emt 00:00:46]} 78. Qf1+ {[%clk
00:00:48]} {[%emt 00:00:17]} Kb2 {[%clk 00:00:54]} {[%emt 00:00:31]} 79. Qf6+
{[%clk 00:01:15]} {[%emt 00:00:08]} Kc2 {[%clk 00:01:13]} {[%emt 00:00:07]} 80.
Qg6+ {[%clk 00:01:21]} {[%emt 00:00:20]} Kd2 {[%clk 00:01:36]} {[%emt
00:00:13]} 81. Qf6 {[%clk 00:00:46]} {[%emt 00:02:05]} Qe3 {[%clk 00:01:14]} 82.
Qb2+ {[%clk 00:00:42]} {[%emt 00:00:20]} Kd1 {[%clk 00:01:28]} {[%emt
00:00:16]} 83. Qb1+ {[%clk 00:00:49]} {[%emt 00:00:23]} Ke2 {[%clk 00:01:40]}
{[%emt 00:00:19]} 84. Qb5+ {[%clk 00:00:49]} {[%emt 00:00:29]} Kf2 {[%clk
00:02:00]} {[%emt 00:01:55]} 85. Qb2+ {[%clk 00:00:33]} {[%emt 00:04:01]} Qe2
{[%clk 00:02:23]} 86. Qf6+ {[%clk 00:00:33]} Ke3+ {[%clk 00:02:48]} 87. Kg1
{[%clk 00:00:34]} Qe1+ {[%clk 00:03:12]} 88. Kg2 {[%clk 00:00:32]} {[%emt
00:00:09]} Qg3+ {[%clk 00:03:36]} 0-1

[Event "6. Internationales Spandauer Weihnachtsopen 2023"]
[Site "Spandau, Germany"]
[Date "2023.12.28"]
[Round "3.2"]
[White "Tschernatsch, Johannes"]
[Black "Böttcher, Patrick"]
[Result "1-0"]
[TimeControl "90 min+30 sec"]
[WhiteElo "2335"]
[BlackElo "2051"]

1. e4 {[%clk 01:30:57]} {[%emt 00:00:03]} c6 {[%clk 01:30:36]} {[%emt
00:00:20]} 2. d4 {[%clk 01:31:20]} {[%emt 00:00:34]} d5 {[%clk 01:30:41]}
{[%emt 00:00:06]} 3. e5 {[%clk 01:31:45]} Bf5 {[%clk 01:31:05]} {[%emt
00:00:09]} 4. Nd2 {[%clk 01:32:10]} e6 {[%clk 01:31:23]} {[%emt 00:00:10]} 5.
Nb3 {[%clk 01:32:36]} {[%emt 00:00:10]} Nd7 {[%clk 01:30:57]} {[%emt 00:00:53]}
6. Nf3 {[%clk 01:33:00]} {[%emt 00:00:12]} c5 {[%clk 01:26:22]} {[%emt
00:04:57]} 7. dxc5 {[%clk 01:33:01]} {[%emt 00:00:36]} Ne7 {[%clk 01:25:34]}
{[%emt 00:01:10]} 8. Bb5 {[%clk 01:30:38]} {[%emt 00:02:50]} Nc6 {[%clk
01:23:07]} {[%emt 00:03:00]} 9. O-O {[%clk 01:27:16]} {[%emt 00:04:12]} Bg4
{[%clk 01:16:53]} {[%emt 00:06:35]} 10. h3 {[%clk 01:13:50]} {[%emt 00:14:01]}
Bxf3 {[%clk 01:10:58]} {[%emt 00:06:09]} 11. Qxf3 {[%clk 01:14:13]} {[%emt
00:00:27]} Nxc5 {[%clk 01:09:25]} {[%emt 00:01:42]} 12. Qg3 {[%clk 00:54:50]}
{[%emt 00:19:54]} Ne4 {[%clk 01:05:23]} {[%emt 00:04:32]} 13. Qe3 {[%clk
00:53:41]} {[%emt 00:02:16]} Be7 {[%clk 00:57:05]} {[%emt 00:08:14]} 14. Rd1
{[%clk 00:41:10]} {[%emt 00:12:56]} Qb6 {[%clk 00:52:53]} {[%emt 00:04:43]} 15.
Qxb6 {[%clk 00:39:56]} {[%emt 00:01:45]} axb6 {[%clk 00:53:21]} {[%emt
00:00:31]} 16. Be3 {[%clk 00:37:32]} {[%emt 00:02:24]} Nc5 {[%clk 00:50:09]}
{[%emt 00:03:57]} 17. c4 {[%clk 00:31:38]} {[%emt 00:06:22]} dxc4 {[%clk
00:46:05]} {[%emt 00:04:51]} 18. Nxc5 {[%clk 00:30:21]} {[%emt 00:01:38]} bxc5
{[%clk 00:40:26]} {[%emt 00:05:49]} 19. a4 {[%clk 00:24:13]} {[%emt 00:06:53]}
Rc8 {[%clk 00:36:16]} {[%emt 00:04:26]} 20. a5 {[%clk 00:22:28]} {[%emt
00:02:15]} Rc7 {[%clk 00:27:26]} {[%emt 00:09:44]} 21. a6 {[%clk 00:16:03]}
{[%emt 00:06:38]} O-O {[%clk 00:25:48]} {[%emt 00:02:01]} 22. axb7 {[%clk
00:15:49]} {[%emt 00:00:43]} Nxe5 {[%clk 00:24:04]} {[%emt 00:02:18]} 23. Ra7
{[%clk 00:15:57]} {[%emt 00:00:43]} Rb8 {[%clk 00:22:55]} {[%emt 00:01:17]} 24.
Bf4 {[%clk 00:12:22]} {[%emt 00:04:02]} Rcxb7 {[%clk 00:19:34]} {[%emt
00:03:51]} 25. Bxe5 {[%clk 00:12:36]} {[%emt 00:00:26]} Rxa7 {[%clk 00:19:23]}
{[%emt 00:00:35]} 26. Bxb8 {[%clk 00:13:01]} {[%emt 00:00:18]} Rb7 {[%clk
00:19:44]} 1-0

[Event "6. Internationales Spandauer Weihnachtsopen 2023"]
[Site "Spandau, Germany"]
[Date "2023.12.28"]
[Round "3.3"]
[White "Lippert, Daniel"]
[Black "Goluch, Piotr"]
[Result "1/2-1/2"]
[TimeControl "90 min+30 sec"]
[WhiteElo "2031"]
[BlackElo "2312"]

1. e4 {[%clk 01:30:56]} {[%emt 00:00:06]} c6 {[%clk 01:30:57]} {[%emt
00:00:04]} 2. d4 {[%clk 01:31:20]} {[%emt 00:00:06]} d5 {[%clk 01:31:23]}
{[%emt 00:00:14]} 3. e5 {[%clk 01:31:45]} c5 {[%clk 01:31:30]} {[%emt
00:00:19]} 4. dxc5 {[%clk 01:32:08]} {[%emt 00:00:05]} e6 {[%clk 01:31:57]}
{[%emt 00:00:08]} 5. a3 {[%clk 01:32:29]} {[%emt 00:00:04]} Bxc5 {[%clk
01:32:22]} {[%emt 00:00:06]} 6. Qg4 {[%clk 01:32:51]} {[%emt 00:00:05]} Ne7
{[%clk 01:32:16]} {[%emt 00:00:37]} 7. Nf3 {[%clk 01:33:12]} {[%emt 00:00:09]}
g6 {[%clk 01:26:57]} {[%emt 00:05:48]} 8. b4 {[%clk 01:17:56]} {[%emt
00:15:46]} Bb6 {[%clk 01:27:23]} {[%emt 00:00:07]} 9. Nc3 {[%clk 01:04:30]}
{[%emt 00:13:52]} a6 {[%clk 01:18:27]} {[%emt 00:09:26]} 10. Bd3 {[%clk
01:00:23]} {[%emt 00:04:41]} Nd7 {[%clk 01:18:37]} {[%emt 00:00:16]} 11. O-O
{[%clk 00:50:53]} {[%emt 00:14:47]} Qc7 {[%clk 01:18:47]} 12. Na4 {[%clk
00:47:38]} Ba7 {[%clk 01:16:47]} {[%emt 00:01:56]} 13. Bf4 {[%clk 00:39:07]}
{[%emt 00:08:54]} b5 {[%clk 01:14:32]} {[%emt 00:02:45]} 14. Nb2 {[%clk
00:37:55]} {[%emt 00:01:45]} Bb7 {[%clk 01:14:38]} {[%emt 00:00:20]} 15. a4
{[%clk 00:36:20]} {[%emt 00:05:02]} Qc3 {[%clk 01:00:19]} {[%emt 00:11:57]} 16.
Rfb1 {[%clk 00:35:38]} {[%emt 00:01:07]} Nf5 {[%clk 00:50:41]} {[%emt
00:10:13]} 17. Nd1 {[%clk 00:27:42]} {[%emt 00:08:21]} Qc6 {[%clk 00:50:01]}
{[%emt 00:01:10]} 18. Ra3 {[%clk 00:22:04]} {[%emt 00:06:08]} bxa4 {[%clk
00:45:24]} {[%emt 00:05:16]} 19. b5 {[%clk 00:11:23]} {[%emt 00:11:05]} Qb6
{[%clk 00:45:49]} {[%emt 00:00:05]} 20. Rb2 {[%clk 00:10:44]} {[%emt 00:01:06]}
a5 {[%clk 00:45:54]} {[%emt 00:00:24]} 21. Bxf5 {[%clk 00:09:59]} {[%emt
00:01:17]} exf5 {[%clk 00:46:18]} {[%emt 00:00:05]} 22. Qh4 {[%clk 00:10:06]}
{[%emt 00:00:23]} h6 {[%clk 00:45:41]} {[%emt 00:01:07]} 23. Be3 {[%clk
00:10:01]} {[%emt 00:00:35]} Qd8 {[%clk 00:42:05]} {[%emt 00:04:08]} 24. Bg5
{[%clk 00:05:53]} {[%emt 00:04:39]} Qb6 {[%clk 00:36:37]} {[%emt 00:05:54]} 25.
Be3 {[%clk 00:06:06]} {[%emt 00:00:17]} Qd8 {[%clk 00:36:29]} {[%emt 00:00:38]}
26. Bg5 {[%clk 00:05:16]} {[%emt 00:01:20]} Qb6 {[%clk 00:36:53]} {[%emt
00:00:05]} 1/2-1/2

[Event "6. Internationales Spandauer Weihnachtsopen 2023"]
[Site "Spandau, Germany"]
[Date "2023.12.28"]
[Round "3.4"]
[White "Krefenstein, Sergej"]
[Black "Förster, Jonas"]
[Result "1/2-1/2"]
[TimeControl "90 min+30 sec"]
[WhiteElo "2029"]
[BlackElo "2275"]

1. d4 {[%clk 01:30:57]} Nf6 {[%clk 01:21:39]} {[%emt 00:09:07]} 2. c4 {[%clk
01:31:20]} {[%emt 00:00:13]} e6 {[%clk 01:21:59]} {[%emt 00:00:06]} 3. Nf3
{[%clk 01:31:45]} {[%emt 00:00:09]} b6 {[%clk 01:21:20]} {[%emt 00:01:03]} 4.
a3 {[%clk 01:31:57]} {[%emt 00:00:23]} Bb7 {[%clk 01:07:38]} {[%emt 00:14:07]}
5. Nc3 {[%clk 01:31:35]} {[%emt 00:00:51]} d5 {[%clk 01:06:15]} {[%emt
00:01:53]} 6. cxd5 {[%clk 01:31:38]} {[%emt 00:00:27]} exd5 {[%clk 01:05:05]}
{[%emt 00:01:40]} 7. Bf4 {[%clk 01:29:52]} {[%emt 00:02:17]} a6 {[%clk
01:00:59]} {[%emt 00:04:40]} 8. e3 {[%clk 01:29:04]} {[%emt 00:01:17]} Bd6
{[%clk 00:59:33]} {[%emt 00:01:53]} 9. Bg3 {[%clk 01:24:19]} {[%emt 00:05:14]}
Bxg3 {[%clk 00:50:00]} {[%emt 00:10:26]} 10. hxg3 {[%clk 01:21:44]} {[%emt
00:03:12]} Nbd7 {[%clk 00:49:41]} {[%emt 00:00:19]} 11. Bd3 {[%clk 01:19:38]}
{[%emt 00:02:40]} Qe7 {[%clk 00:42:59]} {[%emt 00:07:08]} 12. Qc2 {[%clk
01:17:14]} {[%emt 00:02:54]} g6 {[%clk 00:36:22]} {[%emt 00:07:20]} 13. Rc1
{[%clk 01:08:13]} {[%emt 00:09:20]} c5 {[%clk 00:33:50]} {[%emt 00:03:12]} 14.
dxc5 {[%clk 01:03:49]} {[%emt 00:04:42]} Nxc5 {[%clk 00:33:06]} {[%emt
00:01:13]} 15. O-O {[%clk 01:02:45]} {[%emt 00:01:33]} O-O {[%clk 00:31:13]}
{[%emt 00:02:23]} 16. b4 {[%clk 00:58:47]} {[%emt 00:05:10]} Ne6 {[%clk
00:26:54]} {[%emt 00:04:18]} 17. Ne2 {[%clk 00:55:24]} {[%emt 00:03:43]} Rfc8
{[%clk 00:21:25]} {[%emt 00:05:59]} 18. Qb2 {[%clk 00:54:59]} {[%emt 00:00:54]}
Nd7 {[%clk 00:21:25]} {[%emt 00:00:32]} 19. Ned4 {[%clk 00:49:52]} {[%emt
00:05:42]} Qf6 {[%clk 00:18:23]} {[%emt 00:03:44]} 20. Rxc8+ {[%clk 00:47:58]}
{[%emt 00:02:10]} Rxc8 {[%clk 00:18:44]} {[%emt 00:00:07]} 21. Rc1 {[%clk
00:48:20]} {[%emt 00:00:13]} Rxc1+ {[%clk 00:13:03]} {[%emt 00:06:38]} 22. Qxc1
{[%clk 00:48:45]} Nxd4 {[%clk 00:12:08]} {[%emt 00:00:56]} 23. exd4 {[%clk
00:44:50]} {[%emt 00:04:38]} Qd6 {[%clk 00:12:05]} {[%emt 00:00:18]} 24. Qe3
{[%clk 00:40:07]} {[%emt 00:05:12]} Nf6 {[%clk 00:07:48]} {[%emt 00:04:52]} 25.
Ne5 {[%clk 00:30:49]} {[%emt 00:09:46]} Kg7 {[%clk 00:05:17]} {[%emt 00:03:00]}
26. Qf4 {[%clk 00:30:34]} {[%emt 00:00:53]} Qe6 {[%clk 00:05:27]} {[%emt
00:00:19]} 27. Nf3 {[%clk 00:25:37]} {[%emt 00:05:58]} a5 {[%clk 00:04:18]}
{[%emt 00:01:01]} 28. bxa5 {[%clk 00:24:32]} {[%emt 00:01:32]} bxa5 {[%clk
00:04:38]} {[%emt 00:00:38]} 29. Qc7 {[%clk 00:24:42]} Qc6 {[%clk 00:03:29]}
{[%emt 00:01:32]} 30. Qxa5 {[%clk 00:21:27]} {[%emt 00:03:43]} Qc1+ {[%clk
00:03:55]} {[%emt 00:00:41]} 31. Qe1 {[%clk 00:19:55]} {[%emt 00:02:01]} Qxa3
{[%clk 00:04:17]} 1/2-1/2

[Event "6. Internationales Spandauer Weihnachtsopen 2023"]
[Site "Spandau, Germany"]
[Date "2023.12.28"]
[Round "3.5"]
[White "Torosyan, Bagrat"]
[Black "Tiarks, Jann-Christian"]
[Result "1/2-1/2"]
[TimeControl "90 min+30 sec"]
[WhiteElo "2024"]
[BlackElo "2224"]

1. e4 {[%clk 01:25:17]} {[%emt 00:05:38]} c5 {[%clk 01:30:44]} {[%emt
00:00:19]} 2. Nf3 {[%clk 01:25:11]} {[%emt 00:00:34]} d6 {[%clk 01:31:07]}
{[%emt 00:00:11]} 3. d4 {[%clk 01:25:38]} cxd4 {[%clk 01:31:29]} {[%emt
00:00:14]} 4. Nxd4 {[%clk 01:26:04]} Nf6 {[%clk 01:31:52]} {[%emt 00:00:12]} 5.
Nc3 {[%clk 01:26:29]} a6 {[%clk 01:32:18]} {[%emt 00:00:09]} 6. Be3 {[%clk
01:26:53]} e5 {[%clk 01:32:41]} {[%emt 00:00:09]} 7. Nb3 {[%clk 01:26:42]}
{[%emt 00:00:36]} Be7 {[%clk 01:33:04]} {[%emt 00:00:12]} 8. f3 {[%clk
01:26:55]} {[%emt 00:00:14]} Be6 {[%clk 01:33:25]} {[%emt 00:00:13]} 9. Qd2
{[%clk 01:27:12]} {[%emt 00:00:12]} h5 {[%clk 01:33:32]} {[%emt 00:00:20]} 10.
O-O-O {[%clk 01:27:05]} {[%emt 00:00:36]} Nbd7 {[%clk 01:33:41]} {[%emt
00:00:21]} 11. Kb1 {[%clk 01:26:40]} {[%emt 00:01:04]} b5 {[%clk 01:33:55]}
{[%emt 00:00:07]} 12. Nd5 {[%clk 01:24:03]} {[%emt 00:03:08]} Bxd5 {[%clk
01:33:50]} {[%emt 00:00:44]} 13. exd5 {[%clk 01:24:28]} Nb6 {[%clk 01:34:05]}
{[%emt 00:00:10]} 14. Bxb6 {[%clk 01:24:31]} {[%emt 00:00:26]} Qxb6 {[%clk
01:34:29]} {[%emt 00:00:07]} 15. Na5 {[%clk 01:24:53]} {[%emt 00:00:08]} Rc8
{[%clk 01:34:01]} {[%emt 00:00:59]} 16. Nc6 {[%clk 01:25:06]} {[%emt 00:00:17]}
Nxd5 {[%clk 01:34:10]} {[%emt 00:00:42]} 17. Nxe7 {[%clk 01:25:28]} Nxe7 {[%clk
01:34:35]} 18. Qxd6 {[%clk 01:25:44]} {[%emt 00:00:07]} Qxd6 {[%clk 01:34:59]}
{[%emt 00:00:05]} 19. Rxd6 {[%clk 01:26:10]} {[%emt 00:00:07]} Nc6 {[%clk
01:35:22]} {[%emt 00:00:06]} 20. Be2 {[%clk 01:21:48]} {[%emt 00:04:50]} Ke7
{[%clk 01:33:40]} {[%emt 00:02:11]} 21. Rd2 {[%clk 01:21:40]} {[%emt 00:00:39]}
Rhd8 {[%clk 01:28:28]} {[%emt 00:05:44]} 22. Rhd1 {[%clk 01:19:15]} {[%emt
00:02:55]} Rxd2 {[%clk 01:26:40]} {[%emt 00:02:17]} 1/2-1/2

[Event "6. Internationales Spandauer Weihnachtsopen 2023"]
[Site "Spandau, Germany"]
[Date "2023.12.28"]
[Round "3.6"]
[White "Nemitz, Alfred"]
[Black "Szkoludek, Sebastian"]
[Result "1-0"]
[TimeControl "90 min+30 sec"]
[WhiteElo "2219"]
[BlackElo "2006"]

1. d4 {[%clk 01:30:56]} Nf6 {[%clk 01:30:55]} {[%emt 00:00:06]} 2. Nf3 {[%clk
01:31:05]} {[%emt 00:00:21]} c5 {[%clk 01:31:15]} {[%emt 00:00:10]} 3. c3
{[%clk 01:31:11]} {[%emt 00:00:24]} g6 {[%clk 01:29:54]} {[%emt 00:01:55]} 4.
Bg5 {[%clk 01:30:59]} {[%emt 00:00:37]} Bg7 {[%clk 01:29:14]} {[%emt 00:01:11]}
5. e3 {[%clk 01:31:08]} {[%emt 00:00:23]} O-O {[%clk 01:29:12]} {[%emt
00:01:15]} 6. Nbd2 {[%clk 01:31:19]} cxd4 {[%clk 01:22:09]} {[%emt 00:07:07]} 7.
exd4 {[%clk 01:31:26]} {[%emt 00:00:22]} d6 {[%clk 01:21:45]} {[%emt 00:00:55]}
8. Bd3 {[%clk 01:31:31]} {[%emt 00:00:29]} Nc6 {[%clk 01:21:36]} {[%emt
00:00:38]} 9. O-O {[%clk 01:31:39]} {[%emt 00:00:18]} Rb8 {[%clk 01:17:03]}
{[%emt 00:05:12]} 10. a4 {[%clk 01:31:06]} {[%emt 00:00:54]} a6 {[%clk
01:13:34]} {[%emt 00:03:58]} 11. Re1 {[%clk 01:24:15]} {[%emt 00:07:20]} b5
{[%clk 01:11:30]} {[%emt 00:02:40]} 12. axb5 {[%clk 01:20:48]} {[%emt
00:03:54]} axb5 {[%clk 01:11:40]} {[%emt 00:00:20]} 13. Ne4 {[%clk 01:01:09]}
{[%emt 00:20:11]} Nd5 {[%clk 01:02:51]} {[%emt 00:09:17]} 14. Bc2 {[%clk
00:53:36]} {[%emt 00:08:08]} Na5 {[%clk 00:51:49]} {[%emt 00:11:29]} 15. Nxd6
{[%clk 00:41:42]} {[%emt 00:12:26]} h6 {[%clk 00:47:43]} {[%emt 00:04:36]} 16.
Bh4 {[%clk 00:33:58]} {[%emt 00:08:13]} g5 {[%clk 00:36:58]} {[%emt 00:11:11]}
17. Nxc8 {[%clk 00:28:16]} {[%emt 00:06:12]} gxh4 {[%clk 00:35:42]} {[%emt
00:01:45]} 18. Qd3 {[%clk 00:27:36]} {[%emt 00:01:10]} Re8 {[%clk 00:34:53]}
{[%emt 00:01:41]} 19. Na7 {[%clk 00:27:38]} {[%emt 00:00:15]} Qb6 {[%clk
00:28:21]} {[%emt 00:07:00]} 20. Rxa5 {[%clk 00:27:51]} {[%emt 00:00:15]} Qxa5
{[%clk 00:28:09]} {[%emt 00:00:39]} 21. Nc6 {[%clk 00:28:19]} Qc7 {[%clk
00:27:50]} {[%emt 00:00:51]} 22. Nxb8 {[%clk 00:28:36]} {[%emt 00:00:10]} Rxb8
{[%clk 00:28:18]} {[%emt 00:00:04]} 23. Nxh4 {[%clk 00:28:28]} {[%emt
00:00:38]} e6 {[%clk 00:28:30]} {[%emt 00:00:19]} 24. Nf3 {[%clk 00:24:48]}
{[%emt 00:04:10]} Qf4 {[%clk 00:27:12]} {[%emt 00:01:49]} 25. h3 {[%clk
00:23:30]} {[%emt 00:01:42]} 1-0